bitfinex/quotes_BTCUSD_20241101
["timestamp","ask_amount","ask_price","bid_price","bid_amount"]
[1730472960016,0.3275866,70961.0,70960.0,0.995]
[1730472960441,0.04820935,70961.0,70960.0,0.995]
[1730472960656,0.18913135,70961.0,70960.0,0.995]
[1730472960881,0.20213135,70961.0,70960.0,0.995]
[1730472961103,0.21094381,70961.0,70960.0,0.995]
[1730472961352,0.34939906,70961.0,70960.0,0.995]
[1730472961581,0.34943105,70961.0,70960.0,0.995]
[1730472962232,0.38863637,70961.0,70960.0,0.995]
[1730472962435,0.2109758,70961.0,70960.0,0.995]
[1730472962645,0.0700538,70961.0,70960.0,0.995]
[1730472963107,0.0700538,70961.0,70960.0,1.135924]
[1730472963321,0.0700538,70961.0,70960.0,1.215224]
[1730472963942,0.0570538,70961.0,70960.0,1.215224]
[1730472964354,0.014,70961.0,70960.0,1.216224]
[1730472964573,0.03507497,70961.0,70960.0,1.216224]
[1730472964780,0.04305785,70961.0,70960.0,1.215224]
[1730472965249,0.04405785,70961.0,70960.0,1.216224]
[1730472965452,0.04405785,70961.0,70960.0,1.317324]
[1730472965654,0.04305785,70961.0,70960.0,1.317324]
[1730472965894,0.00881103,70961.0,70960.0,1.317324]
[1730472966083,0.21101943,70972.0,70971.0,0.140902]
[1730472966299,0.25407975,70972.0,70971.0,0.140902]
[1730472966657,0.04306032,70972.0,70971.0,0.140902]
[1730472966892,0.04306032,70972.0,70971.0,0.321602]
[1730472967644,0.04606032,70972.0,70971.0,0.321602]
[1730472968051,0.04606032,70972.0,70962.0,0.0796]
[1730472968444,0.04307576,70971.0,70962.0,0.0796]
[1730472968652,0.17640508,70972.0,70962.0,0.0796]
[1730472968653,0.32488476,70970.0,70962.0,0.0796]
[1730472968857,0.04307576,70969.0,70962.0,0.0796]
[1730472969078,0.18153101,70968.0,70962.0,0.0796]
[1730472969275,0.140922,70961.0,70960.0,0.995]
[1730472969403,0.18399776,70961.0,70960.0,0.995]
[1730472970048,0.39501719,70961.0,70960.0,0.995]
[1730472970266,0.18399776,70961.0,70960.0,0.995]
[1730472971295,0.32245301,70961.0,70960.0,0.995]
[1730472971506,0.32245301,70961.0,70960.0,0.996]
[1730472971507,0.32645301,70961.0,70960.0,0.996]
[1730472971728,0.32645301,70961.0,70960.0,0.995]
[1730472971938,0.29218816,70961.0,70960.0,0.995]
[1730472972134,0.3324707,70961.0,70960.0,0.995]
[1730472972419,0.64349013,70961.0,70960.0,0.995]
[1730472972663,0.64349013,70961.0,70960.0,0.95093155]
[1730472972664,0.66973025,70961.0,70960.0,0.95093155]
[1730472973067,0.68114431,70961.0,70960.0,0.95093155]
[1730472973249,0.68175992,70961.0,70960.0,0.95175655]
[1730472973450,0.57154448,70961.0,70960.0,0.95175655]
[1730472973665,0.67572371,70961.0,70960.0,0.95175655]
[1730472973907,0.67172371,70961.0,70960.0,0.95175655]
[1730472974109,0.65087179,70961.0,70960.0,0.95175655]
[1730472974315,0.41365789,70961.0,70960.0,0.95175655]
[1730472974521,0.42465789,70961.0,70960.0,0.95175655]
[1730472974728,0.19773589,70961.0,70960.0,0.95175655]
[1730472974877,0.19773589,70961.0,70960.0,1.09268055]
[1730472974878,0.07022796,70961.0,70960.0,1.09268055]
[1730472975085,0.04828064,70961.0,70960.0,1.09268055]
[1730472975290,0.06228064,70961.0,70960.0,1.09268055]
[1730472975488,0.04828064,70961.0,70960.0,1.09268055]
[1730472975696,0.04823555,70961.0,70960.0,1.09268055]
[1730472975905,0.06023555,70961.0,70960.0,1.16958055]
[1730472976130,0.04823555,70961.0,70960.0,1.16958055]
[1730472976297,0.02716752,70961.0,70960.0,1.4089358]
[1730472976526,0.00165,70967.0,70966.0,0.217812]
[1730472976757,0.0227147,70967.0,70966.0,0.217812]
[1730472976987,0.00165,70967.0,70966.0,0.45998501]
[1730472977384,0.00165,70967.0,70966.0,0.45716725]
[1730472977795,0.00165,70977.0,70966.0,0.23935525]
[1730472978005,0.00165,70977.0,70965.0,0.23965802]
[1730472978006,0.00165,70977.0,70976.0,0.318692]
[1730472978425,0.00165,70977.0,70961.0,0.281844]
[1730472978643,0.00165,70977.0,70957.0,0.0769]
[1730472978644,0.001,70967.0,70957.0,0.0769]
[1730472979040,0.0210554,70966.0,70957.0,0.0769]
[1730472979174,0.001,70967.0,70962.0,0.28184]
[1730472979939,0.140908,70968.0,70963.0,0.140917]
[1730472980196,0.140908,70968.0,70964.0,0.140915]
[1730472980621,0.0210539,70969.0,70957.0,0.0769]
[1730472980840,0.00165,70977.0,70945.0,0.21101943]
[1730472980841,0.00165,70977.0,70968.0,0.1035]
[1730472981050,0.00165,70977.0,70976.0,0.140892]
[1730472982651,0.00265,70977.0,70976.0,0.140892]
[1730472982853,0.00165,70977.0,70975.0,0.140893]
[1730472983049,0.142541,70977.0,70971.0,0.281805]
[1730472983664,0.142541,70977.0,70976.0,0.140892]
[1730472983665,0.00165,70977.0,70976.0,0.140892]
[1730472983899,0.00265,70977.0,70976.0,0.147892]
[1730472984051,0.00365,70977.0,70976.0,0.147892]
[1730472984501,0.00265,70977.0,70976.0,0.140892]
[1730472984706,0.00265,70977.0,70976.0,0.14370954]
[1730472985140,0.00265,70977.0,70976.0,0.140892]
[1730472985342,0.00165,70977.0,70976.0,0.140892]
[1730472985541,0.00265,70977.0,70976.0,0.140892]
[1730472985722,0.00165,70977.0,70976.0,0.140892]
[1730472986168,0.00265,70977.0,70976.0,0.140892]
[1730472986567,0.00365,70977.0,70976.0,0.146892]
[1730472987044,0.00265,70977.0,70976.0,0.140892]
[1730472987690,0.00265,70977.0,70970.0,0.281809]
[1730472987691,0.00265,70977.0,70970.0,0.140904]
[1730472987911,0.00265,70977.0,70968.0,0.385316]
[1730472987912,0.140897,70974.0,70969.0,0.216705]
[1730472988322,0.140897,70974.0,70969.0,0.0758]
[1730472988527,0.00265,70977.0,70976.0,0.140892]
[1730472988772,0.21101943,70975.0,70974.0,0.140896]
[1730472988996,0.140899,70973.0,70969.0,0.0758]
[1730472989209,0.42024825,70974.0,70964.0,0.000825]
[1730472989406,0.140903,70971.0,70966.0,0.14091]
[1730472989620,0.140899,70973.0,70965.0,0.281829]
[1730472989830,0.01314363,70972.0,70967.0,0.00992113]
[1730472990002,0.01314363,70972.0,70966.0,0.281825]
[1730472990003,0.01314363,70972.0,70968.0,0.140908]
[1730472990212,0.15404363,70972.0,70968.0,0.00991139]
[1730472990416,0.140903,70971.0,70968.0,0.00991139]
[1730472990803,0.140903,70971.0,70964.0,0.500825]
[1730472990804,0.21101943,70970.0,70964.0,0.500825]
[1730472991000,0.140904,70971.0,70969.0,0.00990165]
[1730472991321,0.21101943,70972.0,70970.0,0.00989945]
[1730472991652,0.13845525,70974.0,70969.0,0.281813]
[1730472991835,0.13845525,70974.0,70971.0,0.15079171]
[1730472992038,0.13845525,70974.0,70971.0,0.140902]
[1730472992233,0.281762,70982.0,70972.0,0.00987997]
[1730472992440,0.281746,70986.0,70976.0,0.140892]
[1730472992655,0.140873,70986.0,70976.0,0.140892]
[1730472992865,0.21101943,70989.0,70976.0,0.15073302]
[1730472992866,0.49275343,70989.0,70976.0,0.15073302]
[1730472993061,0.02103257,70988.0,70976.0,0.24883302]
[1730472993468,0.21101943,70989.0,70976.0,0.24883302]
[1730472993646,0.00865,70977.0,70976.0,0.24983302]
[1730472994030,0.00165,70977.0,70976.0,0.24883302]
[1730472994462,0.00165,70977.0,70976.0,0.01484102]
[1730472994811,0.14254,70977.0,70976.0,0.01484102]
[1730472995031,0.15668519,70977.0,70976.0,0.01484102]
[1730472995204,0.29414044,70977.0,70976.0,0.01484102]
[1730472995451,0.29414044,70977.0,70976.0,0.005]
[1730472995668,0.17828402,70977.0,70963.0,0.0761]
[1730472995874,0.140914,70965.0,70960.0,0.95175655]
[1730472996020,0.29251444,70965.0,70960.0,0.95175655]
[1730472996231,0.31354802,70965.0,70960.0,0.95175655]
[1730472997037,0.32154802,70965.0,70964.0,0.001825]
[1730472997628,0.65448093,70965.0,70964.0,0.001825]
[1730472997815,0.79296425,70965.0,70964.0,0.001825]
[1730472998038,0.56003143,70965.0,70964.0,0.001825]
[1730472998451,0.43255413,70965.0,70964.0,0.001825]
[1730472998823,0.42455413,70965.0,70964.0,0.000825]
[1730472999281,0.42355413,70965.0,70964.0,0.001825]
[1730472999686,0.43755413,70965.0,70964.0,0.001825]
[1730473000286,0.59454177,70965.0,70964.0,0.001825]
[1730473001038,0.45945427,70965.0,70964.0,0.001825]
[1730473001475,0.45945427,70965.0,70960.0,0.95175655]
[1730473001476,0.240922,70961.0,70960.0,0.95175655]
[1730473001685,0.41356213,70961.0,70960.0,0.95175655]
[1730473002745,0.16907003,70961.0,70960.0,0.95175655]
[1730473002951,0.155922,70961.0,70960.0,0.95175655]
[1730473003165,0.40751111,70961.0,70960.0,0.95175655]
[1730473003362,0.42853072,70961.0,70960.0,0.95175655]
[1730473003558,0.42353072,70961.0,70960.0,0.95175655]
[1730473004819,0.42953072,70961.0,70960.0,0.95275655]
[1730473005191,0.41953072,70961.0,70960.0,0.95275655]
[1730473005410,0.42453072,70961.0,70960.0,0.95175655]
[1730473005614,0.42453072,70961.0,70960.0,0.95275655]
[1730473005615,0.43253072,70961.0,70960.0,0.95275655]
[1730473005809,0.30051111,70961.0,70960.0,0.95275655]
[1730473006071,0.02,70961.0,70960.0,1.02865655]
[1730473006206,0.02,70961.0,70960.0,1.16958055]
[1730473006437,0.02,70961.0,70960.0,1.26458055]
[1730473006671,0.02,70961.0,70960.0,1.27460777]
[1730473007048,0.02,70961.0,70960.0,1.26960777]
[1730473007688,0.02,70961.0,70960.0,1.12868377]
[1730473007905,0.012,70961.0,70960.0,1.12768377]
[1730473008116,0.144922,70961.0,70960.0,1.12768377]
[1730473008320,0.005,70961.0,70960.0,1.12868377]
[1730473008529,0.001,70961.0,70960.0,1.12868377]
[1730473008740,0.21101943,70968.0,70960.0,1.12768377]
[1730473008964,0.142922,70961.0,70960.0,1.12868377]
[1730473009184,0.142922,70961.0,70960.0,0.95778377]
[1730473009415,0.002,70961.0,70960.0,0.95778377]
[1730473009621,0.002,70961.0,70960.0,0.95678377]
[1730473010467,0.002,70961.0,70960.0,1.09770777]
[1730473010897,0.002,70961.0,70960.0,1.27560777]
[1730473011622,0.002,70961.0,70960.0,1.27660777]
[1730473011819,0.21101943,70969.0,70965.0,0.140914]
[1730473012012,0.21101943,70969.0,70963.0,0.281834]
[1730473012220,0.001,70961.0,70960.0,1.26558055]
[1730473012350,0.21101943,70969.0,70960.0,1.12465655]
[1730473012550,0.21101943,70969.0,70962.0,0.28184]
[1730473012783,0.140908,70968.0,70964.0,0.140915]
[1730473012950,0.21101943,70969.0,70960.0,1.12565655]
[1730473013154,0.21101943,70971.0,70960.0,1.12565655]
[1730473013358,0.21101943,70971.0,70965.0,0.281829]
[1730473013556,0.283446,70974.0,70963.0,0.001]
[1730473013557,0.01,70967.0,70966.0,0.14372999]
[1730473014136,0.01,70967.0,70966.0,0.220112]
[1730473014349,0.01,70967.0,70966.0,0.22292968]
[1730473014564,0.01,70967.0,70966.0,0.32672968]
[1730473014760,0.01,70967.0,70966.0,0.46236725]
[1730473015316,0.00165,70974.0,70973.0,0.323898]
[1730473015749,0.00165,70974.0,70973.0,0.3337861]
[1730473016530,0.00265,70974.0,70973.0,0.3427861]
[1730473017389,0.00265,70974.0,70973.0,0.48124135]
[1730473017588,0.21101943,70989.0,70979.0,0.281773]
[1730473017800,0.21101943,70989.0,70988.0,0.55252602]
[1730473018230,0.21101943,71006.0,70996.0,0.140853]
[1730473018613,0.35185243,71006.0,70996.0,0.14612894]
[1730473018813,0.35185243,71006.0,71000.0,0.140843]
[1730473019073,0.21101943,71006.0,70997.0,0.281702]
[1730473019297,0.21101943,71006.0,71001.0,0.00524755]
[1730473019505,0.21101943,71006.0,70988.0,0.42065802]
[1730473019506,0.001648,71014.0,71005.0,0.0807]
[1730473019702,0.21101943,71007.0,71006.0,0.140833]
[1730473019950,0.13845525,71013.0,71005.0,0.0807]
[1730473020177,0.140821,71012.0,71006.0,0.14605004]
[1730473020610,0.13845525,71013.0,71006.0,0.00521804]
[1730473020818,0.281646,71011.0,71006.0,0.00521804]
[1730473020942,0.13845525,71013.0,71006.0,0.00521804]
[1730473021152,0.135825,71010.0,71006.0,0.00521804]
[1730473021381,0.140825,71010.0,71006.0,0.00521804]
[1730473021582,0.135825,71010.0,71006.0,0.00521804]
[1730473021787,0.135825,71010.0,71006.0,0.00621804]
[1730473022045,0.006648,71014.0,71006.0,0.00521804]
[1730473022046,0.001648,71014.0,71006.0,0.00521804]
[1730473022244,0.001648,71014.0,71013.0,0.140819]
[1730473022606,0.001648,71014.0,71013.0,0.14597386]
[1730473022607,0.21266743,71014.0,71013.0,0.14597386]
[1730473022836,0.001648,71014.0,71013.0,0.14597386]
[1730473023064,0.001648,71014.0,71013.0,0.22768971]
[1730473023289,0.001648,71014.0,71013.0,0.36614496]
[1730473023490,0.001648,71014.0,71013.0,0.46042911]
[1730473023698,0.001648,71014.0,71013.0,0.46213585]
[1730473023925,0.001648,71014.0,71013.0,0.3236806]
[1730473024146,0.001648,71014.0,71013.0,0.46213585]
[1730473024438,0.001648,71014.0,71013.0,0.56213585]
[1730473024439,0.002648,71014.0,71013.0,0.56213585]
[1730473024658,0.001596,71038.0,71030.0,0.325585]
[1730473024865,0.001596,71038.0,71030.0,0.56524302]
[1730473025065,0.001596,71038.0,71030.0,0.71378848]
[1730473025275,0.001596,71038.0,71037.0,0.140771]
[1730473025477,0.001596,71038.0,71037.0,0.38042902]
[1730473025645,0.001596,71038.0,71037.0,0.39043319]
[1730473027730,0.002596,71038.0,71037.0,0.39643319]
[1730473028158,0.001596,71038.0,71037.0,0.39043319]
[1730473028332,0.001596,71038.0,71037.0,0.39643319]
[1730473028333,0.002596,71038.0,71037.0,0.39643319]
[1730473028538,0.003596,71038.0,71037.0,0.66577517]
[1730473028734,0.002596,71038.0,71037.0,0.89943319]
[1730473029003,0.002596,71038.0,71037.0,1.03788844]
[1730473029223,0.21101943,71050.0,71044.0,0.38041502]
[1730473029398,0.21266743,71058.0,71057.0,0.140732]
[1730473029705,0.21266743,71058.0,71057.0,0.59774527]
[1730473029951,0.001648,71058.0,71057.0,0.60755508]
[1730473030151,0.001648,71058.0,71057.0,1.0735131]
[1730473030380,0.001648,71058.0,71057.0,0.81085508]
[1730473030831,0.001648,71067.0,71059.0,0.240728]
[1730473031029,0.001648,71067.0,71060.0,0.263726]
[1730473031236,0.001648,71067.0,71066.0,0.56257202]
[1730473031443,0.001648,71067.0,71066.0,0.72402727]
[1730473031615,0.001648,71067.0,71066.0,1.23370097]
[1730473032645,0.001596,71082.0,71066.0,1.10098697]
[1730473032845,0.001596,71082.0,71081.0,0.140684]
[1730473033045,0.001596,71082.0,71081.0,0.35833925]
[1730473033278,0.001596,71082.0,71081.0,0.45523925]
[1730473033404,0.001596,71082.0,71081.0,0.46476729]
[1730473034717,0.001596,71082.0,71081.0,0.46976729]
[1730473034928,0.001594,71086.0,71083.0,0.28136]
[1730473035135,0.001596,71106.0,71097.0,0.140652]
[1730473035348,0.001596,71106.0,71097.0,1.02813801]
[1730473035571,0.001596,71106.0,71105.0,0.140637]
[1730473035777,0.001596,71106.0,71105.0,0.38310729]
[1730473035986,0.001596,71106.0,71105.0,0.38029502]
[1730473036199,0.001596,71106.0,71105.0,0.52804539]
[1730473036415,0.000797,71110.0,71109.0,0.322329]
[1730473036642,0.001648,71122.0,71119.0,0.140609]
[1730473036885,0.001648,71122.0,71111.0,0.28125]
[1730473037143,0.001648,71122.0,71112.0,0.21101943]
[1730473037386,0.001648,71122.0,71112.0,0.23965802]
[1730473037631,0.001648,71122.0,71109.0,0.1817]
[1730473037632,0.001648,71122.0,71119.0,0.38026702]
[1730473038056,0.001648,71122.0,71120.0,0.140607]
[1730473038254,0.001648,71122.0,71121.0,0.140605]
[1730473038465,0.001648,71122.0,71121.0,0.27906025]
[1730473040594,0.21101943,71150.0,71121.0,0.13845525]
[1730473040802,0.21101943,71150.0,71129.0,0.318989]
[1730473041024,0.21101943,71150.0,71149.0,0.14055]
[1730473041234,0.21101943,71150.0,71149.0,0.23965802]
[1730473041635,0.281045,71163.0,71140.0,0.281132]
[1730473041636,0.281079,71155.0,71142.0,0.52078202]
[1730473041844,0.13845525,71153.0,71143.0,0.21101943]
[1730473042053,0.13845525,71153.0,71144.0,0.140559]
[1730473042266,0.13845525,71153.0,71142.0,0.23965802]
[1730473042267,0.27899725,71153.0,71142.0,0.38022102]
[1730473042471,0.13845525,71153.0,71143.0,0.140561]
[1730473042679,0.13845525,71153.0,71143.0,0.14056]
[1730473042901,0.001,71150.0,71149.0,0.5]
[1730473044030,0.13945525,71150.0,71149.0,0.5]
[1730473044251,0.001,71150.0,71149.0,0.5]
[1730473044516,0.000797,71154.0,71150.0,0.281096]
[1730473044791,0.000797,71154.0,71149.0,0.5]
[1730473044792,0.21101943,71153.0,71149.0,0.5]
[1730473045007,0.001,71153.0,71152.0,0.140543]
[1730473045226,0.000797,71154.0,71153.0,0.140542]
[1730473045462,0.000797,71154.0,71153.0,0.14335222]
[1730473045691,0.000797,71154.0,71153.0,0.140542]
[1730473046327,0.21101943,71170.0,71169.0,0.23965802]
[1730473046528,0.21101943,71170.0,71162.0,0.23965802]
[1730473046728,0.21101943,71170.0,71152.0,0.140543]
[1730473046729,0.140523,71163.0,71152.0,0.140543]
[1730473046935,0.000823,71153.0,71152.0,0.140544]
[1730473047159,0.000823,71153.0,71147.0,0.23965802]
[1730473047368,0.000823,71153.0,71149.0,0.008]
[1730473047576,0.000823,71153.0,71150.0,0.28390365]
[1730473047782,0.000823,71153.0,71152.0,0.140544]
[1730473047997,0.000823,71153.0,71152.0,0.14335444]
[1730473048238,0.000823,71153.0,71152.0,0.648544]
[1730473049566,0.000823,71153.0,71152.0,0.653544]
[1730473049829,0.000823,71153.0,71152.0,1.00301868]
[1730473050058,0.57734643,71193.0,71152.0,1.00301868]
[1730473050059,0.21101943,71166.0,71165.0,0.140518]
[1730473050285,0.29641943,71193.0,71175.0,0.280994]
[1730473050286,0.140472,71189.0,71175.0,0.280994]
[1730473050488,0.21101943,71193.0,71179.0,0.23965802]
[1730473050693,0.140472,71189.0,71179.0,0.23965802]
[1730473050901,0.13845525,71188.0,71179.0,0.23965802]
[1730473051378,0.140476,71187.0,71179.0,0.23965802]
[1730473051596,0.13845525,71188.0,71179.0,0.23965802]
[1730473051597,0.002,71180.0,71179.0,0.23965802]
[1730473052045,0.002,71180.0,71170.0,0.281016]
[1730473052046,0.140496,71176.0,71175.0,0.5]
[1730473052273,0.21101943,71187.0,71175.0,0.5]
[1730473052274,0.14049,71180.0,71175.0,0.5]
[1730473052925,0.140496,71176.0,71175.0,0.5]
[1730473053144,0.27895125,71176.0,71175.0,0.5]
[1730473053685,0.13845525,71176.0,71175.0,0.5]
[1730473053895,0.003,71180.0,71175.0,0.5]
[1730473054203,0.002,71180.0,71175.0,0.5]
[1730473054795,0.140481,71184.0,71175.0,0.5]
[1730473055223,0.380955,71186.0,71175.0,0.5]
[1730473055224,0.1,71186.0,71176.0,0.21101943]
[1730473055417,0.1514368,71185.0,71176.0,0.21101943]
[1730473055618,0.01298155,71184.0,71175.0,0.5806]
[1730473055896,0.01298155,71183.0,71175.0,0.5846]
[1730473056077,0.01298155,71182.0,71175.0,0.5886]
[1730473056313,0.01298155,71181.0,71175.0,0.5886]
[1730473056515,0.13845525,71185.0,71175.0,0.5886]
[1730473056714,0.15345859,71184.0,71176.0,0.004]
[1730473056933,0.1,71190.0,71176.0,0.004]
[1730473056934,0.15143284,71183.0,71176.0,0.004]
[1730473057147,0.140496,71176.0,71175.0,0.50577201]
[1730473057340,0.29192884,71176.0,71175.0,0.49777201]
[1730473057555,0.27895125,71176.0,71175.0,0.49777201]
[1730473057759,0.13845525,71176.0,71175.0,0.50577201]
[1730473057965,0.27895125,71176.0,71175.0,0.50577201]
[1730473058174,0.29193042,71176.0,71175.0,0.50799901]
[1730473058378,0.29193042,71176.0,71175.0,0.51199901]
[1730473058588,0.27895125,71176.0,71175.0,0.51199901]
[1730473058818,0.27895125,71176.0,71175.0,0.49999901]
[1730473059016,0.29193091,71176.0,71175.0,0.51199901]
[1730473059409,0.27895125,71176.0,71175.0,0.51199901]
[1730473059610,0.29193111,71176.0,71175.0,0.51199901]
[1730473059817,0.29193111,71176.0,71175.0,0.50799901]
[1730473060233,0.29193111,71176.0,71175.0,0.50999901]
[1730473060465,0.29193111,71176.0,71175.0,0.50199901]
[1730473060673,0.01297986,71176.0,71175.0,0.50199901]
[1730473060841,0.000825,71181.0,71175.0,0.50799901]
[1730473061039,0.01300228,71180.0,71175.0,0.50799901]
[1730473061244,0.01300228,71179.0,71175.0,0.49999901]
[1730473061447,0.0338221,71178.0,71175.0,0.49999901]
[1730473061795,0.005,71176.0,71175.0,0.50799901]
[1730473062003,0.01300228,71176.0,71175.0,0.50799901]
[1730473062213,0.03382276,71176.0,71175.0,0.49999901]
[1730473062426,0.03382276,71176.0,71175.0,0.50399901]
[1730473062658,0.03382276,71176.0,71175.0,0.50799901]
[1730473062859,0.03382276,71176.0,71175.0,0.51199901]
[1730473063264,0.03382276,71176.0,71175.0,0.50799901]
[1730473063419,0.03387002,71176.0,71175.0,0.50799901]
[1730473063627,0.140494,71178.0,71175.0,0.49999901]
[1730473063800,0.01304106,71176.0,71175.0,0.49999901]
[1730473064012,0.31285801,71176.0,71175.0,0.50699901]
[1730473064567,0.31285801,71176.0,71175.0,0.49999901]
[1730473064779,0.31285801,71176.0,71175.0,0.50399901]
[1730473064982,0.31285801,71176.0,71175.0,0.50899901]
[1730473065232,0.31285801,71176.0,71175.0,0.50499901]
[1730473065434,0.31285801,71176.0,71175.0,0.50099901]
[1730473065646,0.31285801,71176.0,71175.0,0.49999901]
[1730473065846,0.31285801,71176.0,71175.0,0.50499901]
[1730473066054,0.31685801,71176.0,71175.0,0.50599901]
[1730473066496,0.31685801,71176.0,71175.0,0.50499901]
[1730473066497,0.31285801,71176.0,71175.0,0.50499901]
[1730473066903,0.31685801,71176.0,71175.0,0.50599901]
[1730473067113,0.31685801,71176.0,71175.0,0.46937233]
[1730473067348,0.31697187,71176.0,71175.0,0.47437233]
[1730473067789,0.31697187,71176.0,71175.0,0.006]
[1730473067991,0.45347187,71176.0,71167.0,0.21101943]
[1730473068188,0.27895125,71176.0,71175.0,0.001]
[1730473068341,0.31600699,71176.0,71175.0,0.001]
[1730473068538,0.31300699,71176.0,71175.0,0.001]
[1730473069005,0.31700699,71176.0,71175.0,0.001]
[1730473069241,0.14051,71169.0,71167.0,0.21101943]
[1730473069413,0.281007,71173.0,71159.0,0.21101943]
[1730473069414,0.17251099,71168.0,71159.0,0.21101943]
[1730473069613,0.17251099,71168.0,71160.0,0.21101943]
[1730473069614,0.02185217,71166.0,71160.0,0.21101943]
[1730473069854,0.03405574,71165.0,71160.0,0.21101943]
[1730473070028,0.03405574,71164.0,71160.0,0.21101943]
[1730473070243,0.000824,71180.0,71157.0,0.23965802]
[1730473070244,0.03405574,71163.0,71162.0,0.140524]
[1730473071118,0.03410937,71163.0,71162.0,0.140524]
[1730473071554,0.03410937,71163.0,71162.0,0.148524]
[1730473071762,0.03410937,71163.0,71162.0,0.008]
[1730473072179,0.03410937,71163.0,71162.0,0.004]
[1730473072590,0.03410937,71163.0,71162.0,0.012]
[1730473072819,0.03410937,71163.0,71162.0,0.008]
[1730473073884,0.03410937,71163.0,71160.0,0.140526]
[1730473074184,0.03410937,71162.0,71160.0,0.140527]
[1730473074430,0.49202143,71174.0,71154.0,0.28108]
[1730473074431,0.03410937,71161.0,71154.0,0.28108]
[1730473074646,0.03410937,71160.0,71157.0,0.140533]
[1730473074914,0.03410937,71159.0,71154.0,0.28108]
[1730473075146,0.03415408,71159.0,71158.0,0.140532]
[1730473075399,0.140507,71171.0,71157.0,0.281068]
[1730473075601,0.02189927,71163.0,71158.0,0.140532]
[1730473075812,0.02189927,71163.0,71159.0,0.281059]
[1730473075813,0.03416286,71162.0,71159.0,0.281059]
[1730473076029,0.02189927,71163.0,71161.0,0.23965802]
[1730473076241,0.02189927,71165.0,71164.0,0.14052]
[1730473076444,0.05606612,71165.0,71164.0,0.14052]
[1730473076655,0.03416589,71165.0,71164.0,0.14052]
[1730473076863,0.03416589,71165.0,71164.0,0.35153943]
[1730473077119,0.05606612,71165.0,71164.0,0.14052]
[1730473077341,0.000825,71181.0,71174.0,0.0794]
[1730473077342,0.02272423,71180.0,71174.0,0.0794]
[1730473077560,0.02272423,71180.0,71179.0,0.38014802]
[1730473077561,0.000824,71180.0,71179.0,0.38014802]
[1730473078025,0.000824,71180.0,71175.0,0.780997]
[1730473078225,0.01854923,71183.0,71176.0,0.140496]
[1730473078415,0.000796,71192.0,71175.0,0.5]
[1730473078416,0.21101943,71186.0,71175.0,0.5]
[1730473078660,0.140469,71190.0,71175.0,0.5]
[1730473078868,0.281727,71192.0,71175.0,0.5]
[1730473078869,0.21101943,71188.0,71175.0,0.5]
[1730473079014,0.13845525,71187.0,71175.0,0.5]
[1730473079218,0.13845525,71187.0,71179.0,0.008]
[1730473079427,0.140477,71186.0,71179.0,0.008]
[1730473079590,0.13845525,71186.0,71179.0,0.008]
[1730473081283,0.13845525,71186.0,71176.0,0.21101943]
[1730473081580,0.13845525,71186.0,71176.0,0.35151543]
[1730473081822,0.13845525,71186.0,71179.0,0.004]
[1730473082023,0.13845525,71186.0,71177.0,0.008]
[1730473082471,0.13845525,71186.0,71177.0,0.012]
[1730473082663,0.13845525,71186.0,71180.0,0.5]
[1730473083554,0.02188894,71183.0,71180.0,0.5]
[1730473083772,0.13845525,71182.0,71180.0,0.5]
[1730473083996,0.140486,71181.0,71180.0,0.5]
[1730473084209,0.16034464,71181.0,71180.0,0.5]
[1730473084433,0.02188947,71186.0,71181.0,0.140486]
[1730473084655,0.000824,71187.0,71181.0,0.140485]
[1730473084869,0.000824,71187.0,71180.0,0.5]
[1730473084870,0.000824,71187.0,71186.0,0.38013502]
[1730473085919,0.000824,71187.0,71185.0,0.0817]
[1730473086094,0.000824,71187.0,71182.0,0.0963]
[1730473086675,0.000824,71187.0,71186.0,0.004]
[1730473086884,0.000824,71187.0,71186.0,0.38013502]
[1730473087242,0.000824,71187.0,71186.0,0.38813502]
[1730473087243,0.02182669,71187.0,71186.0,0.38813502]
[1730473088282,0.02182669,71187.0,71186.0,0.24765802]
[1730473088485,0.02182669,71187.0,71186.0,0.148477]
[1730473088719,0.02182669,71187.0,71186.0,0.008]
[1730473088920,0.02182669,71187.0,71186.0,0.012]
[1730473089093,0.02182669,71187.0,71186.0,0.152477]
[1730473089325,0.03494831,71187.0,71186.0,0.152477]
[1730473089742,0.000824,71187.0,71186.0,0.152477]
[1730473090004,0.03493503,71187.0,71186.0,0.152477]
[1730473090391,0.01394363,71187.0,71186.0,0.152477]
[1730473092585,0.01393827,71187.0,71186.0,0.012]
[1730473092738,0.01393827,71187.0,71186.0,0.152477]
[1730473092916,0.000824,71187.0,71186.0,0.152477]
[1730473096281,0.000824,71187.0,71186.0,0.012]
[1730473100452,0.000824,71187.0,71186.0,0.152477]
[1730473102624,0.000824,71187.0,71186.0,0.012]
[1730473103242,0.000824,71187.0,71186.0,0.152477]
[1730473105162,0.000824,71187.0,71186.0,0.012]
[1730473105919,0.27975425,71187.0,71186.0,0.012]
[1730473106375,0.2929021,71187.0,71186.0,0.012]
[1730473106592,0.31395246,71187.0,71186.0,0.012]
[1730473106830,0.01397185,71187.0,71186.0,0.012]
[1730473107036,0.01397185,71187.0,71186.0,0.53067568]
[1730473107037,0.000824,71187.0,71186.0,0.53067568]
[1730473107245,0.000824,71187.0,71186.0,0.233077]
[1730473107632,0.000824,71187.0,71186.0,0.22899886]
[1730473107788,0.000824,71187.0,71186.0,0.36745411]
[1730473108195,0.000824,71187.0,71186.0,0.36345411]
[1730473108582,0.004824,71187.0,71186.0,0.36345411]
[1730473108827,0.000824,71187.0,71186.0,0.40713726]
[1730473108984,0.001824,71187.0,71186.0,0.40713726]
[1730473109354,0.001824,71187.0,71186.0,0.41113726]
[1730473109566,0.000824,71187.0,71186.0,0.40713726]
[1730473109975,0.000824,71187.0,71186.0,0.41113726]
[1730473110162,0.000824,71187.0,71186.0,0.41913726]
[1730473110632,0.000824,71187.0,71186.0,0.41113726]
[1730473110840,0.000824,71187.0,71186.0,0.6497736]
[1730473111018,0.000824,71187.0,71186.0,0.6577736]
[1730473112059,0.000824,71187.0,71186.0,0.6537736]
[1730473112271,0.000824,71187.0,71186.0,0.6487736]